bitfinex-derivatives/quotes_BTCF0:USTF0_20241103
["timestamp","ask_amount","ask_price","bid_price","bid_amount"]
[1730666197264,0.3608,68904.0,68901.0,0.065333]
[1730666197461,0.127,68903.0,68901.0,0.065333]
[1730666198156,0.127,68903.0,68892.0,0.3608]
[1730666198561,0.3608,68910.0,68902.0,0.065332]
[1730666198860,0.127,68908.0,68892.0,0.3608]
[1730666199054,0.3608,68916.0,68908.0,0.065327]
[1730666199255,0.127,68911.0,68908.0,0.065327]
[1730666199550,0.3608,68916.0,68908.0,0.065327]
[1730666200158,0.065324,68911.0,68904.0,0.06533]
[1730666200363,0.12917941,68909.0,68898.0,0.3608]
[1730666200551,0.12917941,68909.0,68903.0,0.065332]
[1730666200959,0.065328,68907.0,68898.0,0.3608]
[1730666201161,0.12917941,68909.0,68896.0,0.065338]
[1730666201368,0.06533,68905.0,68896.0,0.065338]
[1730666201566,0.06533,68905.0,68898.0,0.065336]
[1730666201867,0.06533,68905.0,68895.0,0.3608]
[1730666201868,0.2965922,68909.0,68895.0,0.3608]
[1730666202069,0.065331,68904.0,68896.0,0.065338]
[1730666203371,0.16741279,68902.0,68896.0,0.065338]
[1730666203668,0.127,68901.0,68896.0,0.065338]
[1730666205459,0.3608,68897.0,68888.0,0.3608]
[1730666205873,0.065338,68896.0,68888.0,0.426146]
[1730666206054,0.16741279,68895.0,68888.0,0.3608]
[1730666206368,0.065344,68890.0,68888.0,0.3608]
[1730666206963,0.065345,68889.0,68888.0,0.3608]
[1730666207356,0.500825,68889.0,68888.0,0.3608]
[1730666208056,0.500825,68889.0,68880.0,0.04330731]
[1730666208057,0.065349,68885.0,68880.0,0.04330731]
[1730666208263,0.19235,68884.0,68879.0,0.3608]
[1730666208469,0.19235,68884.0,68877.0,0.10866331]
[1730666208470,0.3608,68882.0,68877.0,0.10866331]
[1730666208870,0.065353,68881.0,68876.0,0.04330731]
[1730666209171,0.065353,68881.0,68868.0,0.0302]
[1730666209172,0.23276879,68878.0,68874.0,0.04330731]
[1730666209376,0.23276879,68878.0,68871.0,0.04330731]
[1730666210069,0.065356,68877.0,68870.0,0.10867031]
[1730666210277,0.16741279,68878.0,68866.0,0.05992101]
[1730666210278,0.065359,68874.0,68871.0,0.04330731]
[1730666210460,0.03268332,68880.0,68871.0,0.04330731]
[1730666210461,0.16741279,68872.0,68871.0,0.04330731]
[1730666210665,0.065362,68871.0,68868.0,0.04330731]
[1730666210971,0.16741279,68872.0,68858.0,0.43297885]
[1730666210972,0.3608,68869.0,68867.0,0.04330731]
[1730666211173,0.127,68868.0,68867.0,0.065366]
[1730666211562,0.3608,68876.0,68865.0,0.05774308]
[1730666211772,0.127,68875.0,68872.0,0.065361]
[1730666212671,0.127,68875.0,68873.0,0.06536]
[1730666214070,0.065354,68880.0,68873.0,0.06536]
[1730666214267,0.127,68879.0,68874.0,0.065358]
[1730666214973,0.3608,68881.0,68866.0,0.04313301]
[1730666215273,0.3608,68881.0,68864.0,0.3608]
[1730666215274,0.127,68880.0,68876.0,0.065357]
[1730666215477,0.127,68880.0,68877.0,0.065356]
[1730666215774,0.127,68879.0,68877.0,0.065356]
[1730666216165,0.127,68879.0,68870.0,0.3608]
[1730666216166,0.127,68879.0,68871.0,0.065362]
[1730666216469,0.127,68879.0,68870.0,0.3608]
[1730666216470,0.127,68879.0,68877.0,0.065356]
[1730666216778,0.3608,68881.0,68873.0,0.06536]
[1730666217073,0.127,68880.0,68874.0,0.065359]
[1730666217276,0.127,68880.0,68870.0,0.3608]
[1730666218176,0.127,68879.0,68870.0,0.3608]
[1730666218478,0.127,68879.0,68875.0,0.065358]
[1730666219077,0.127,68879.0,68870.0,0.3608]
[1730666219267,0.127,68879.0,68871.0,0.065361]
[1730666220071,0.127,68879.0,68867.0,0.04313301]
[1730666220267,0.127,68879.0,68864.0,0.3608]
[1730666220268,0.127,68879.0,68875.0,0.065358]
[1730666220468,0.15904894,68939.0,68887.0,0.065347]
[1730666220469,0.3608,68888.0,68887.0,0.065347]
[1730666220668,0.12704,68902.0,68892.0,0.065342]
[1730666220872,0.12704,68902.0,68892.0,0.426142]
[1730666222077,0.3608,68904.0,68892.0,0.426142]
[1730666222283,0.12704,68898.0,68892.0,0.426142]
[1730666223483,0.00076,68904.0,68903.0,0.065332]
[1730666223677,0.16741279,68929.0,68903.0,0.065332]
[1730666223678,0.426106,68931.0,68926.0,0.06531]
[1730666223877,0.127,68930.0,68921.0,0.04306299]
[1730666224073,0.127,68930.0,68923.0,0.04306299]
[1730666224274,0.065307,68929.0,68923.0,0.04306299]
[1730666224572,0.16741279,68928.0,68923.0,0.04306299]
[1730666224982,0.065314,68921.0,68916.0,0.04306299]
[1730666225177,0.16741279,68919.0,68915.0,0.06532]
[1730666226278,0.127,68918.0,68915.0,0.06532]
[1730666226773,0.12264,68917.0,68915.0,0.06532]
[1730666227168,0.12264,68917.0,68916.0,0.065319]
[1730666227575,0.3608,68924.0,68913.0,0.04306299]
[1730666227774,0.16741279,68926.0,68912.0,0.3608]
[1730666227775,0.12264,68926.0,68914.0,0.10838399]
[1730666227980,0.3608,68931.0,68928.0,0.065308]
[1730666228182,0.12264,68930.0,68928.0,0.065308]
[1730666228380,0.3608,68931.0,68916.0,0.04306299]
[1730666228681,0.1226,68930.0,68925.0,0.065311]
[1730666229384,0.1226,68930.0,68926.0,0.06531]
[1730666229588,0.076737,68929.0,68912.0,0.3608]
[1730666229772,0.1226,68930.0,68928.0,0.065308]
[1730666229974,0.07673677,68929.0,68913.0,0.065322]
[1730666230170,0.07673677,68929.0,68912.0,0.3608]
[1730666230171,0.07673677,68928.0,68912.0,0.3608]
[1730666230374,0.03550907,68927.0,68926.0,0.06531]
[1730666231078,0.15810907,68927.0,68926.0,0.06531]
[1730666232382,0.03550907,68927.0,68926.0,0.06531]
[1730666232582,0.15810907,68927.0,68926.0,0.06531]
[1730666232879,0.15810907,68927.0,68924.0,0.065311]
[1730666233077,0.03493881,68926.0,68925.0,0.065311]
[1730666233585,0.03493881,68926.0,68925.0,0.426111]
[1730666233779,0.4834,68938.0,68937.0,0.065299]
[1730666233979,0.3608,68938.0,68937.0,0.065299]
[1730666235482,0.1226,68941.0,68926.0,0.09611]
[1730666235682,0.1226,68941.0,68932.0,0.065304]
[1730666235880,0.1226,68941.0,68938.0,0.065298]
[1730666236082,0.1226,68941.0,68939.0,0.065297]
[1730666236484,0.03567559,68938.0,68935.0,0.0653]
[1730666236688,0.12477697,68940.0,68938.0,0.065298]
[1730666236884,0.12477697,68940.0,68939.0,0.065297]
[1730666237689,0.00217697,68940.0,68939.0,0.065297]
[1730666242091,0.00217697,68940.0,68931.0,0.3608]
[1730666242484,0.00217697,68940.0,68939.0,0.065297]
[1730666246585,0.00217697,68940.0,68912.0,0.04306299]
[1730666246586,0.00217697,68940.0,68936.0,0.0653]
[1730666246789,0.065299,68938.0,68924.0,0.426111]
[1730666246994,0.12256,68939.0,68929.0,0.065307]
[1730666247195,0.12256,68939.0,68925.0,0.03547627]
[1730666247196,0.065301,68935.0,68925.0,0.03547627]
[1730666247589,0.065301,68935.0,68930.0,0.065305]
[1730666247884,0.0321,68938.0,68934.0,0.065302]
[1730666248090,0.12256,68937.0,68934.0,0.065302]
[1730666250600,0.12256,68937.0,68925.0,0.00217627]
[1730666250904,0.12256,68937.0,68930.0,0.065305]
[1730666251103,0.12256,68937.0,68931.0,0.065305]
[1730666251801,0.03568929,68936.0,68931.0,0.065305]
[1730666251986,0.03568929,68935.0,68929.0,0.065307]
[1730666252188,0.07718674,68934.0,68929.0,0.065307]
[1730666252391,0.0653,68936.0,68930.0,0.065306]
[1730666252392,0.03571502,68933.0,68930.0,0.065306]
[1730666252589,0.0653,68936.0,68930.0,0.065306]
[1730666252590,0.03571502,68932.0,68930.0,0.065306]
[1730666252790,0.03571502,68931.0,68930.0,0.065306]
[1730666253208,0.15827502,68931.0,68925.0,0.00217627]
[1730666253394,0.15827502,68931.0,68925.0,0.06748727]
[1730666253395,0.07686894,68930.0,68925.0,0.06748727]
[1730666253599,0.12256,68931.0,68926.0,0.06531]
[1730666253600,0.07686894,68929.0,68926.0,0.06531]
[1730666253796,0.07686894,68928.0,68926.0,0.06531]
[1730666253995,0.07686894,68927.0,68926.0,0.06531]
[1730666254497,0.07686894,68927.0,68925.0,0.00217627]
[1730666254699,0.5172536,68926.0,68888.0,0.3608]
[1730666254905,0.16741279,68892.0,68888.0,0.3608]
[1730666255096,0.15827502,68891.0,68886.0,0.065347]
[1730666255301,0.03571502,68890.0,68881.0,0.3608]
[1730666255596,0.12256,68891.0,68878.0,0.065355]
[1730666255597,0.3608,68888.0,68878.0,0.065355]
[1730666255796,0.3608,68888.0,68857.0,0.065375]
[1730666255797,0.065357,68876.0,68857.0,0.065375]
[1730666255999,0.065357,68876.0,68852.0,0.3608]
[1730666256000,0.16741279,68862.0,68852.0,0.3608]
[1730666256208,0.12256,68861.0,68853.0,0.065379]
[1730666257401,0.12256,68861.0,68852.0,0.3608]
[1730666257703,0.16741279,68854.0,68852.0,0.3608]
[1730666257904,0.23279179,68854.0,68852.0,0.3608]
[1730666258203,0.3608,68853.0,68844.0,0.3608]
[1730666258401,0.16741279,68845.0,68836.0,0.0331]
[1730666258602,0.1254,68844.0,68836.0,0.0331]
[1730666258910,0.1254,68844.0,68833.0,0.3608]
[1730666258911,0.065389,68843.0,68833.0,0.3608]
[1730666259909,0.065389,68842.0,68833.0,0.3608]
[1730666260212,0.1254,68844.0,68833.0,0.3608]
[1730666260411,0.065389,68842.0,68833.0,0.3608]
[1730666261515,0.3608,68841.0,68828.0,0.065403]
[1730666261701,0.065392,68839.0,68828.0,0.065403]
[1730666261902,0.16741279,68831.0,68828.0,0.065403]
[1730666262102,0.08180743,68830.0,68828.0,0.065403]
[1730666262614,0.08180743,68830.0,68823.0,0.0329]
[1730666262803,0.16741279,68824.0,68823.0,0.0329]
[1730666266502,0.11650395,68824.0,68823.0,0.0329]
[1730666266912,0.43592,68823.0,68808.0,0.36297967]
[1730666267104,0.11650395,68824.0,68808.0,0.00217967]
[1730666267105,0.23283379,68809.0,68808.0,0.00217967]
[1730666267307,0.35831379,68809.0,68808.0,0.00217967]
[1730666268411,0.29289279,68809.0,68808.0,0.00217967]
[1730666268908,0.35831379,68809.0,68808.0,0.00217967]
[1730666269600,0.35831379,68809.0,68800.0,0.4608]
[1730666269601,0.065425,68806.0,68800.0,0.4608]
[1730666269797,0.16741279,68801.0,68800.0,0.4608]
[1730666271613,0.29293279,68801.0,68800.0,0.4608]
[1730666272000,0.35836079,68801.0,68800.0,0.4608]
[1730666272714,1.02897279,68801.0,68775.0,0.065452]
[1730666272901,0.16741279,68776.0,68773.0,0.3608]
[1730666273217,0.05274334,68775.0,68773.0,0.3608]
[1730666273905,0.52821279,68783.0,68773.0,0.3608]
[1730666274213,0.52821279,68791.0,68779.0,0.3608]
[1730666274404,0.12556,68790.0,68785.0,0.065444]
[1730666274604,0.12556,68789.0,68785.0,0.065444]
[1730666275207,0.52901279,68791.0,68787.0,0.065442]
[1730666275411,0.52821279,68791.0,68789.0,0.065439]
[1730666275611,0.12556,68790.0,68789.0,0.065439]
[1730666276914,0.12556,68790.0,68785.0,0.065443]
[1730666277109,0.52901279,68791.0,68785.0,0.065443]
[1730666277311,0.12556,68790.0,68780.0,0.0312]
[1730666277506,0.12556,68790.0,68786.0,0.065442]
[1730666279122,0.004,68801.0,68780.0,0.0312]
[1730666279123,0.3608,68806.0,68790.0,0.065439]
[1730666279418,0.12556,68805.0,68802.0,0.065427]
[1730666279627,0.3608,68833.0,68822.0,0.065408]
[1730666279809,0.3608,68833.0,68832.0,0.065399]
[1730666280518,0.065385,68848.0,68832.0,0.426199]
[1730666280720,0.12556,68850.0,68841.0,0.06539]
[1730666280924,0.12556,68850.0,68844.0,0.065388]
[1730666281214,0.190942,68850.0,68844.0,0.065388]
[1730666281915,0.190942,68850.0,68832.0,0.426199]
[1730666281916,0.065388,68844.0,68834.0,0.065397]
[1730666282117,0.065388,68844.0,68832.0,0.3608]
[1730666282118,0.16741279,68839.0,68832.0,0.3608]
[1730666282310,0.52821279,68839.0,68832.0,0.3608]
[1730666282912,0.12556,68843.0,68832.0,0.3608]
[1730666283121,0.3608,68845.0,68837.0,0.065394]
[1730666283321,0.12556,68844.0,68837.0,0.065394]
[1730666283622,0.16741279,68839.0,68832.0,0.3608]
[1730666283921,0.16741279,68839.0,68838.0,0.065393]
[1730666284718,0.29297279,68839.0,68838.0,0.065393]
[1730666285323,0.12556,68839.0,68838.0,0.065393]
[1730666285626,0.12556,68847.0,68846.0,0.065386]
[1730666286119,0.48636,68854.0,68853.0,0.065379]
[1730666286314,0.3608,68854.0,68853.0,0.065379]
[1730666287017,0.12556,68855.0,68854.0,0.065378]
[1730666287214,0.12364,68856.0,68855.0,0.065377]
[1730666291123,0.43568,68856.0,68850.0,0.3608]
[1730666291420,0.12364,68855.0,68854.0,0.065378]
[1730666295222,0.3608,68861.0,68860.0,0.065372]
[1730666295424,0.1236,68868.0,68863.0,0.06537]
[1730666296323,0.3608,68869.0,68863.0,0.06537]
[1730666296520,0.1236,68866.0,68863.0,0.06537]
[1730666297420,0.1236,68866.0,68865.0,0.065368]
[1730666299235,0.1236,68866.0,68861.0,0.065371]
[1730666299422,0.188967,68866.0,68859.0,0.3608]
[1730666299623,0.1236,68866.0,68859.0,0.3608]
[1730666299827,0.1236,68866.0,68864.0,0.065368]
[1730666300022,0.1236,68866.0,68859.0,0.065373]
[1730666300431,0.188967,68866.0,68860.0,0.065372]
[1730666300626,0.1236,68866.0,68861.0,0.065371]
[1730666301030,0.1236,68866.0,68863.0,0.065369]
[1730666301233,0.1236,68866.0,68857.0,0.3608]
[1730666301735,0.1236,68866.0,68860.0,0.065372]
[1730666302325,0.1236,68866.0,68849.0,0.3608]
[1730666302326,0.16741279,68861.0,68849.0,0.3608]
[1730666302723,0.3608,68862.0,68849.0,0.3608]
[1730666302933,0.1236,68866.0,68859.0,0.065373]
[1730666303426,0.3608,68863.0,68859.0,0.065373]
[1730666305028,0.3608,68863.0,68849.0,0.3608]
[1730666305534,0.3608,68863.0,68859.0,0.065373]
[1730666306435,0.065376,68857.0,68850.0,0.065381]
[1730666306729,0.16741279,68860.0,68850.0,0.065381]
[1730666306730,0.3608,68854.0,68850.0,0.065381]
[1730666306930,0.1236,68853.0,68850.0,0.065381]
[1730666308231,0.03405209,68852.0,68850.0,0.065381]
[1730666308426,0.03405209,68851.0,68850.0,0.065381]
[1730666308626,0.03405209,68852.0,68849.0,0.3608]
[1730666308826,0.03405209,68851.0,68849.0,0.3608]
[1730666309025,0.03405209,68850.0,68849.0,0.3608]
[1730666309224,0.03405209,68852.0,68849.0,0.3608]
[1730666309430,0.03405209,68851.0,68849.0,0.3608]
[1730666309738,0.03405209,68850.0,68849.0,0.3608]
[1730666309927,0.03405209,68850.0,68838.0,0.0318]
[1730666310134,0.3608,68848.0,68842.0,0.065389]
[1730666310325,0.03405209,68847.0,68842.0,0.065389]
[1730666310523,0.03405209,68846.0,68842.0,0.065389]
[1730666310727,0.03405209,68845.0,68843.0,0.065388]
[1730666311034,0.03405209,68844.0,68843.0,0.065388]
[1730666311936,0.3608,68848.0,68841.0,0.04306299]
[1730666312131,0.16741279,68847.0,68838.0,0.10845599]
[1730666312323,0.3608,68848.0,68839.0,0.065392]
[1730666312732,0.39385065,68848.0,68839.0,0.065392]
[1730666313035,0.39385065,68848.0,68839.0,0.10845499]
[1730666313736,0.39385065,68848.0,68839.0,0.04306299]
[1730666313942,0.39385065,68848.0,68840.0,0.065391]
[1730666315231,0.39385065,68848.0,68841.0,0.06539]
[1730666315734,0.39385065,68848.0,68840.0,0.04306299]
[1730666315936,0.39385065,68848.0,68839.0,0.10845399]
[1730666316129,0.39385065,68848.0,68839.0,0.065391]
[1730666316331,0.065385,68847.0,68839.0,0.065391]
[1730666316836,0.065385,68847.0,68840.0,0.065391]
[1730666317639,0.3608,68841.0,68838.0,0.04306299]
[1730666317939,0.11169022,68839.0,68835.0,0.00217892]
[1730666318143,0.065394,68837.0,68833.0,0.04306299]
[1730666318329,0.065394,68837.0,68821.0,0.07177166]
[1730666318330,0.065401,68831.0,68825.0,0.10846799]
[1730666318631,0.065403,68828.0,68824.0,0.40386299]
[1730666318838,0.12124,68827.0,68824.0,0.3608]
[1730666319935,0.12124,68827.0,68824.0,0.41821733]
[1730666320236,0.12124,68827.0,68821.0,0.05741733]
[1730666320237,0.11169022,68825.0,68821.0,0.05741733]
[1730666320427,0.11169022,68825.0,68812.0,0.3608]
[1730666320428,0.48288,68827.0,68824.0,0.04331576]
[1730666320627,0.48204,68827.0,68825.0,0.065405]
[1730666320940,0.48204,68827.0,68823.0,0.04331576]
[1730666321142,0.48204,68827.0,68822.0,0.10872376]
[1730666321442,0.48204,68827.0,68823.0,0.065407]
[1730666323230,0.12124,68827.0,68823.0,0.065407]
[1730666323931,0.16758561,68824.0,68820.0,0.04331576]
[1730666324137,0.16758561,68824.0,68812.0,0.3608]
[1730666324138,0.065409,68822.0,68815.0,0.10873076]
[1730666324339,0.065409,68822.0,68816.0,0.065413]
[1730666324933,0.065409,68822.0,68815.0,0.04331576]
[1730666325141,0.16758561,68824.0,68820.0,0.06541]
[1730666325341,0.12128,68823.0,68815.0,0.065415]
[1730666325543,0.12128,68823.0,68816.0,0.04331576]
[1730666325741,0.12128,68823.0,68817.0,0.04331576]
[1730666326242,0.3608,68828.0,68824.0,0.065406]
[1730666326438,0.12128,68827.0,68822.0,0.065408]
[1730666327444,0.12128,68827.0,68823.0,0.065407]
[1730666328243,0.12128,68827.0,68824.0,0.065406]
[1730666330443,0.03216253,68831.0,68819.0,0.3608]
[1730666330751,0.3608,68842.0,68833.0,0.065398]
[1730666330752,0.12128,68836.0,68833.0,0.065398]
[1730666331349,0.3608,68842.0,68833.0,0.065398]
[1730666331537,0.12128,68838.0,68837.0,0.065394]
[1730666333849,0.03424058,68841.0,68837.0,0.065394]
[1730666334043,0.12128,68840.0,68838.0,0.065393]
[1730666334841,0.12128,68840.0,68825.0,0.3926]
[1730666335049,0.3608,68834.0,68830.0,0.04331576]
[1730666336049,0.3608,68834.0,68831.0,0.04331576]
[1730666336449,0.3608,68834.0,68826.0,0.05741733]
[1730666336450,0.59378361,68834.0,68826.0,0.04331576]
[1730666336957,0.59378361,68834.0,68827.0,0.065403]
[1730666337155,0.065398,68833.0,68827.0,0.065403]
[1730666337648,0.096498,68833.0,68827.0,0.065403]
[1730666337956,0.065399,68832.0,68827.0,0.065403]
[1730666340658,0.03260901,68833.0,68825.0,0.04331576]
[1730666340853,0.3608,68834.0,68831.0,0.065399]
[1730666341555,0.3608,68834.0,68819.0,0.3608]
[1730666341556,0.39413025,68834.0,68826.0,0.04331576]
[1730666341754,0.3608,68827.0,68825.0,0.04331576]
[1730666341955,0.48208,68827.0,68822.0,0.065408]
[1730666342155,0.11170984,68823.0,68822.0,0.065408]
[1730666342752,0.14480348,68823.0,68822.0,0.065408]
[1730666344465,0.14480348,68823.0,68816.0,0.065413]
[1730666344761,0.3608,68821.0,68811.0,0.3608]
[1730666345152,0.3608,68821.0,68820.0,0.06541]
[1730666346057,0.36156,68827.0,68826.0,0.065405]
[1730666346258,0.3608,68827.0,68826.0,0.065405]
[1730666347671,0.11624,68855.0,68840.0,0.065391]
[1730666347859,0.3608,68856.0,68840.0,0.89870084]
[1730666348164,0.3608,68856.0,68840.0,1.63450084]
[1730666348360,0.11624,68857.0,68856.0,0.065376]
[1730666348564,0.0625,68860.0,68856.0,0.3608]
[1730666348866,0.03487009,68859.0,68858.0,0.065374]
[1730666349049,0.0625,68860.0,68858.0,0.065374]
[1730666349960,0.53954,68860.0,68854.0,0.04331576]
[1730666350154,0.53954,68860.0,68854.0,0.065378]
[1730666350155,0.11170984,68857.0,68854.0,0.065378]
[1730666351253,0.11170984,68857.0,68855.0,0.065377]
[1730666351859,0.22790984,68857.0,68855.0,0.065377]
[1730666352457,0.22790984,68857.0,68851.0,0.06538]
[1730666352766,0.11170984,68852.0,68851.0,0.06538]
[1730666353566,0.11170984,68852.0,68850.0,0.3608]
[1730666353868,0.11170984,68852.0,68850.0,0.426182]
[1730666354069,0.11170984,68852.0,68851.0,0.065381]
[1730666354461,0.11170984,68852.0,68850.0,0.3608]
[1730666354659,0.11170984,68852.0,68851.0,0.065381]
[1730666355063,0.22790984,68857.0,68851.0,0.065381]
[1730666356964,0.08558871,68856.0,68850.0,0.30985946]
[1730666357265,0.15904894,68854.0,68850.0,0.30985946]
[1730666357464,0.12005664,68853.0,68832.0,0.00217928]
[1730666357667,0.14458491,68849.0,68848.0,0.426184]
[1730666357868,0.03446793,68849.0,68848.0,0.53789384]
[1730666358070,0.03446793,68849.0,68848.0,0.426184]
[1730666359174,0.03370748,68849.0,68848.0,0.426184]
[1730666363180,0.03370748,68849.0,68848.0,0.861904]
[1730666363382,0.11775583,68858.0,68857.0,0.065375]
[1730666363571,0.04471864,68858.0,68857.0,0.065375]
[1730666363769,0.0338241,68858.0,68856.0,0.065376]
[1730666363975,0.07309284,68857.0,68856.0,0.065376]
[1730666364169,0.065369,68864.0,68855.0,0.3608]
[1730666364170,0.11794917,68863.0,68855.0,0.3608]
[1730666364472,0.11794314,68862.0,68855.0,0.3608]
[1730666364667,0.11838072,68861.0,68855.0,0.3608]
[1730666364867,0.0734474,68860.0,68859.0,0.065373]
[1730666365072,0.06537,68863.0,68855.0,0.3608]
[1730666365272,0.06537,68863.0,68861.0,0.06537]
[1730666365472,0.06537,68863.0,68855.0,0.3608]
[1730666365671,0.06537,68863.0,68862.0,0.06537]
[1730666366277,0.1162,68865.0,68862.0,0.06537]
[1730666367985,0.00076,68869.0,68868.0,0.065365]
[1730666368285,0.00217928,68874.0,68873.0,0.06536]
[1730666368477,0.00217928,68874.0,68873.0,0.17706984]
[1730666368989,0.0303,68883.0,68873.0,0.17706984]
[1730666369189,0.0303,68883.0,68882.0,0.065351]
[1730666369486,0.03348871,68883.0,68882.0,0.065351]
[1730666369788,0.3608,68884.0,68876.0,0.3608]
[1730666369789,0.3608,68884.0,68883.0,0.065351]
[1730666371781,0.181505,68889.0,68886.0,0.065347]
[1730666372083,0.12220419,68888.0,68887.0,0.03438961]
[1730666372287,0.07581921,68888.0,68887.0,0.03438961]
[1730666372784,0.12220738,68888.0,68876.0,0.3608]
[1730666372982,0.12220738,68887.0,68883.0,0.3608]
[1730666373182,0.11616,68889.0,68886.0,0.065348]
[1730666373384,0.12125705,68888.0,68887.0,0.065347]
[1730666378581,0.07523158,68888.0,68887.0,0.065347]
[1730666379088,0.03481256,68888.0,68883.0,0.3608]
[1730666379289,0.11170984,68886.0,68882.0,0.065351]
[1730666379591,0.11170984,68886.0,68876.0,0.3608]
[1730666379592,0.07523158,68885.0,68884.0,0.06535]
[1730666379777,0.18679158,68885.0,68884.0,0.42615]
[1730666380089,0.11156,68885.0,68884.0,0.42615]
[1730666382892,0.11156,68889.0,68887.0,0.065346]
[1730666383590,0.11156,68889.0,68874.0,0.11170984]
[1730666383795,0.11156,68889.0,68888.0,0.065346]
[1730666389894,0.54704,68889.0,68883.0,0.3608]
[1730666390090,0.54704,68889.0,68875.0,0.362]
[1730666390091,0.11170984,68884.0,68875.0,0.3608]
[1730666390293,0.36156,68887.0,68882.0,0.065351]
[1730666390493,0.3608,68887.0,68882.0,0.065351]
[1730666390689,0.426147,68887.0,68882.0,0.065351]
[1730666391693,0.11156,68889.0,68882.0,0.065351]
[1730666391896,0.11152,68888.0,68875.0,0.3608]
[1730666392095,0.11152,68888.0,68883.0,0.06535]
[1730666392794,0.11152,68888.0,68884.0,0.065349]
[1730666392995,0.176867,68888.0,68880.0,0.065353]
[1730666393197,0.176867,68888.0,68875.0,0.3608]
[1730666393804,0.176867,68888.0,68883.0,0.06535]
[1730666394004,0.10030933,68887.0,68879.0,0.065354]
[1730666394195,0.03512494,68886.0,68881.0,0.065352]
[1730666394396,0.065348,68887.0,68881.0,0.065352]
[1730666394595,0.03512423,68886.0,68881.0,0.065352]
[1730666394900,0.065348,68887.0,68881.0,0.065352]
[1730666395098,0.12237177,68886.0,68881.0,0.065352]
[1730666395403,0.12237177,68885.0,68881.0,0.065352]
[1730666395593,0.065348,68887.0,68881.0,0.065352]
[1730666395594,0.12237177,68884.0,68881.0,0.065352]
[1730666395789,0.07591864,68883.0,68881.0,0.065352]
[1730666396001,0.07591864,68882.0,68881.0,0.065352]
[1730666396195,0.12237488,68882.0,68881.0,0.065352]
[1730666396901,0.04079458,68882.0,68881.0,0.065352]
[1730666397103,0.065348,68887.0,68883.0,0.06535]
[1730666397401,0.065348,68887.0,68875.0,0.3608]
[1730666397402,0.12259228,68886.0,68875.0,0.3608]
[1730666397599,0.12259228,68885.0,68880.0,0.065353]
[1730666397798,0.23411228,68884.0,68880.0,0.065353]
[1730666398110,0.12259228,68883.0,68880.0,0.065353]
[1730666398309,0.12259228,68882.0,68880.0,0.065353]
[1730666398503,0.12259228,68881.0,68880.0,0.065353]
[1730666398804,0.12259228,68883.0,68880.0,0.065353]
[1730666399309,0.12259228,68882.0,68880.0,0.065353]
[1730666399502,0.12259228,68881.0,68880.0,0.065353]
[1730666400701,0.12259228,68881.0,68878.0,0.3608]
[1730666400907,0.12259228,68880.0,68878.0,0.3608]
[1730666401107,0.12259228,68879.0,68878.0,0.3608]
[1730666401300,0.12259228,68879.0,68878.0,0.53786484]
[1730666401496,0.07609804,68879.0,68878.0,0.53786484]
[1730666402002,0.07609804,68879.0,68878.0,0.97342484]
[1730666402207,0.17728491,68895.0,68894.0,0.06534]
[1730666402404,0.0327,68895.0,68894.0,0.06534]
[1730666403012,0.14422,68895.0,68894.0,0.06534]
[1730666403316,0.0327,68895.0,68894.0,0.06534]
[1730666403500,0.14422,68895.0,68894.0,0.06534]
[1730666403695,0.03271421,68896.0,68895.0,0.065339]
[1730666403895,0.00217816,68897.0,68891.0,0.3608]
[1730666403896,0.00217816,68897.0,68896.0,0.065338]
[1730666407503,0.00217816,68897.0,68896.0,0.12297691]
[1730666408313,0.00217816,68897.0,68896.0,0.065338]
[1730666409599,0.00217816,68897.0,68894.0,0.05763891]
[1730666409810,0.065339,68895.0,68894.0,0.05763891]
[1730666410008,0.06534,68894.0,68891.0,0.3608]
[1730666410913,0.065341,68893.0,68891.0,0.3608]
[1730666411109,0.0327,68892.0,68891.0,0.3608]
[1730666411298,0.0652,68892.0,68891.0,0.3608]
[1730666412112,0.130542,68892.0,68891.0,0.3608]
[1730666413216,0.065347,68887.0,68886.0,0.0012]
[1730666413403,0.065347,68887.0,68883.0,0.04322979]
[1730666413404,0.1086,68887.0,68880.0,0.00217754]
[1730666413606,0.00076,68892.0,68884.0,0.11170984]
[1730666413917,0.00217816,68897.0,68891.0,0.53785284]
[1730666414101,0.00217816,68897.0,68896.0,0.065338]
[1730666417707,0.03815441,68897.0,68896.0,0.065338]
[1730666418021,0.03597625,68897.0,68896.0,0.065338]
[1730666418615,0.03597625,68897.0,68891.0,0.3608]
[1730666418616,0.03597625,68897.0,68891.0,0.426142]
[1730666418916,0.03597625,68896.0,68894.0,0.06534]
[1730666419117,0.273935,68900.0,68896.0,0.065338]
[1730666419513,0.0358507,68899.0,68896.0,0.065338]
[1730666421207,0.273935,68900.0,68896.0,0.065338]
[1730666421607,0.2086,68900.0,68891.0,0.3608]
[1730666421821,0.065336,68899.0,68891.0,0.3608]
[1730666422925,0.065336,68899.0,68895.0,0.065339]
[1730666423128,0.10856,68898.0,68895.0,0.065339]
[1730666424527,0.22026984,68898.0,68891.0,0.3608]
[1730666424824,0.065339,68895.0,68891.0,0.3608]
[1730666425124,0.11170984,68892.0,68891.0,0.3608]
[1730666425337,0.17705184,68892.0,68891.0,0.3608]
[1730666426214,0.11170984,68892.0,68884.0,0.065349]
[1730666426419,0.065345,68889.0,68883.0,0.06535]
[1730666426624,0.0321,68888.0,68883.0,0.06535]
[1730666426824,0.10856,68887.0,68883.0,0.06535]
[1730666427433,0.10856,68887.0,68884.0,0.06535]
[1730666427825,0.10856,68887.0,68880.0,0.00217754]
[1730666428027,0.065351,68883.0,68880.0,0.00217754]
[1730666428531,0.11170984,68885.0,68880.0,0.00217754]
[1730666428729,0.065352,68882.0,68880.0,0.00217754]
[1730666429026,0.0315,68881.0,68880.0,0.00217754]
[1730666432434,0.0315,68881.0,68880.0,0.0454766]